[Event "3rd Tal Heraklion-IM 2022"]
[Site "Heraklion"]
[Date "2022.05.04"]
[Round "9.1"]
[White "Langrock, Hannes"]
[Black "Kotsinis, Alexandros"]
[Result "1-0"]
[ECO "E01"]
[WhiteElo "2351"]
[BlackElo "2055"]
[Annotator "TA"]
[PlyCount "81"]
[EventDate "2022.04.18"]
[EventType "tourn"]
[EventCountry "GRE"]
[SourceTitle "playchess.com"]
[Source "ChessBase"]
[SourceQuality "1"]
[TimeControl "40/5400+30:1800+30"]

{[%evp 9,81,33,32,37,35,27,34,36,34,27,23,23,97,95,91,90,87,92,77,78,117,102,113,102,113,116,111,111,104,104,121,115,110,84,154,128,141,145,146,143,164,116,120,133,179,166,232,232,243,224,231,231,230,226,295,316,323,324,314,311,298,311,347,299,349,361,546,547,537,502,680,656,793,779]} 1. d4 {[%emt 0:00:03]} d5 {[%emt 0:12:25]} 2. c4 {[%emt 0:00:27]} e6 {[%emt 0:00:46]} 3. Nf3 {[%emt 0:00:14]} Nf6 {[%emt 0:00:38]} 4. g3 {[%emt 0:00:11]} h6 {[%emt 0:00:08]} 5. Bg2 {[%emt 0:00:35]} Bd6 {[%emt 0:00:05]} 6. O-O {[%emt 0:00:40] E01: Catalan: Early deviations.} O-O {[%emt 0:00:07]} 7. Nc3 {[%emt 0:00:20]} Nc6 {[%emt 0:01:54]} 8. b3 {[%emt 0:00:33][%cal Bb2b3,Bb3c4,Bc4c5][%mdl 32] White is slightly better.} dxc4 {[%emt 0:00:07]} 9. bxc4 {[%emt 0:00:06]} e5 {[%emt 0:00:03]} 10. Rb1 {[%emt 0:00:40] [#]} Rb8 $146 {[%emt 0:01:14]} (10... Nxd4 $11 11. Nxd4 exd4 12. Qxd4 Re8) ({Predecessor:} 10... exd4 11. Nxd4 Nxd4 12. Qxd4 Re8 13. Be3 Qe7 14. Nb5 Be5 15. Qc5 Qxc5 16. Bxc5 Bf5 {½-½ (45) Abdusattorov,N (2651)-Artemiev,V (2700) chess24.com INT 2022}) 11. c5 {[%emt 0:32:18]} exd4 {[%emt 0:05:04]} 12. Nxd4 {[%emt 0:01:15]} Nxd4 {[%emt 0:00:17]} 13. Qxd4 {[%emt 0:07:49]} Be7 {[%emt 0:00:08]} 14. Qxd8 {[%emt 0:00:40] White is much more active. The black rooks are badly placed.} Rxd8 {[%emt 0:10:19]} 15. Bf4 {[%emt 0:00:40]} Ne8 {[%emt 0:00:04]} 16. c6 {[%emt 0:12:00][%cal Rc6b7]} g5 {[%emt 0:03:36] [#]} 17. cxb7 $1 {[%emt 0:07:23]} Bxb7 {[%emt 0:12:35]} 18. Bxb7 {[%emt 0:00:16]} gxf4 {[%emt 0:00:05]} 19. Nd5 {[%emt 0:00:57]} Bd6 {[%emt 0:00:13]} 20. gxf4 {[%emt 0:00:59]} ({Much less strong is} 20. Nxf4 Bxf4 21. gxf4 Rd2 $14) 20... Kg7 {[%emt 0:00:11]} 21. Kh1 {[%emt 0:02:51]} f5 {[%emt 0:02:31]} (21... Bc5 $142) 22. Rb3 {[%emt 0:09:46]} Kf7 {[%emt 0:04:20]} 23. Rfb1 {[%emt 0:05:36]} Bc5 {[%emt 0:04:25][%cal Ob8b7]} 24. Ne3 {[%emt 0:02:08]} Kf6 {[%emt 0:00:28]} 25. Bc6 {[%emt 0:00:35]} ({White should play} 25. Rc1 $18 Bxe3 26. fxe3) 25... Rxb3 $16 {[%emt 0:06:27]} 26. Rxb3 {[%emt 0:00:04]} Kg6 {[%emt 0:09:28]} (26... Ng7 $16 {was called for.}) 27. Kg2 {[%emt 0:07:21][%cal Oe3f5]} Nf6 {[%emt 0:00:41] [#]} (27... Bd6 $142 28. Kf3 Ng7) 28. Nxf5 $1 $18 {[%emt 0:02:42][%mdl 512]} Rd2 {[%emt 0:06:36] [#]} (28... Bxf2 29. Ne7+) 29. Rb5 $1 {[%emt 0:01:32]} Bb6 {[%emt 0:01:05]} 30. Kf3 {[%emt 0:01:00]} Rxa2 {[%emt 0:00:57]} 31. h4 {[%emt 0:00:55]} h5 {[%emt 0:04:07]} 32. Ng3 {[%emt 0:00:28]} Rc2 {[%emt 0:03:14]} 33. Rg5+ {[%emt 0:00:46]} Kf7 {[%emt 0:00:24]} 34. Ba4 {[%emt 0:00:34]} Rc3+ {[%emt 0:01:15]} 35. e3 {[%emt 0:00:02]} Ra3 {[%emt 0:08:37]} 36. Bb5 {[%emt 0:00:21]} a5 {[%emt 0:02:26]} 37. Bc4+ {[%emt 0:01:12]} ({Don't do} 37. Nxh5 Nxh5 38. Rxh5 Rc3 39. Rh7+ Kg8) 37... Ke7 {[%emt 0:01:02]} (37... Ke8 $142 38. Nxh5 Nxh5 39. Rxh5 Rc3) 38. Nf5+ {[%emt 0:01:34] White is clearly winning.} Kd7 {[%emt 0:02:24]} 39. Rg7+ {[%emt 0:01:29]} Kd8 {[%emt 0:00:00]} 40. Rg6 {[%emt 0:00:00]} Rc3 {[%emt 0:00:00]} 41. Be6 {[%emt 0:04:34] Weighted Error Value: White=0.05 (flawless) /Black=0.29 (precise)} ({Weaker is} 41. Rxf6 Rxc4 42. Rf8+ Kd7 $16) 1-0

[Event "3rd Tal Heraklion-IM 2022"]
[Site "Heraklion"]
[Date "2022.05.04"]
[Round "9.2"]
[White "Peng, Li Min"]
[Black "Bracker, Arne"]
[Result "1-0"]
[ECO "E24"]
[WhiteElo "2517"]
[BlackElo "2276"]
[Annotator "TA"]
[PlyCount "49"]
[EventDate "2022.04.18"]
[EventType "tourn"]
[EventCountry "GRE"]
[SourceTitle "playchess.com"]
[Source "ChessBase"]
[SourceQuality "1"]
[TimeControl "40/5400+30:1800+30"]

{[%evp 10,49,0,-24,-18,-16,-28,-24,-24,-26,-22,-40,-40,-36,-41,-34,-36,-78,-94,-141,0,-120,-39,-137,41,-236,-250,-570,-537,-568,-546,-606,-600,-764,-42,-43,-68,-327,-309,-312,1047,1044]} 1. d4 {[%emt 0:12:44]} Nf6 {[%emt 0:00:08]} 2. c4 {[%emt 0:00:14]} e6 {[%emt 0:00:06]} 3. Nc3 {[%emt 0:00:05]} Bb4 {[%emt 0:00:09]} 4. a3 {[%emt 0:00:05]} Bxc3+ {[%emt 0:00:18]} 5. bxc3 {[%emt 0:00:47]} b6 {[%emt 0:00:14]} 6. f3 {[%emt 0:00:04]} Nc6 {[%emt 0:00:24] E24: Nimzo-Indian: Sämisch: Unusual Black 5th moves and 5...c5 sidelines.} 7. e4 {[%emt 0:00:12]} Na5 {[%emt 0:00:14]} 8. Bd3 {[%emt 0:00:26]} Ba6 {[%emt 0:00:26] Black has an edge.} 9. Qe2 {[%emt 0:00:39]} c5 {[%emt 0:00:18] [#]} 10. Nh3 $146 {[%emt 0:00:21]} ({Predecessor:} 10. e5 Ng8 11. Be3 cxd4 12. cxd4 Rc8 13. Rc1 d5 14. exd6 Qxd6 15. c5 Bxd3 16. Qxd3 {0-1 (71) Sethuraman,S (2619)-Harsha,B (2499) New Delhi 2022}) 10... cxd4 {[%emt 0:10:17]} 11. cxd4 {[%emt 0:00:12]} Rc8 {[%emt 0:00:11][%cal Ra6c4]} 12. e5 {[%emt 0:14:54]} Ng8 {[%emt 0:03:36][%cal Ra6c4]} 13. O-O {[%emt 0:00:32]} Bxc4 {[%emt 0:08:16]} 14. Ng5 {[%emt 0:00:12]} ({Better is} 14. Bg5 Ne7 15. Rac1) 14... Ne7 {[%emt 0:07:33]} (14... d5 $1 $17 {...h6 is the strong threat.} 15. exd6 Qxd6) 15. Bd2 {[%emt 0:03:21]} (15. Ne4 $1 $11 O-O 16. Bg5) 15... Nd5 {[%emt 0:20:04]} (15... d5 $1 $17 16. Bxa5 bxa5) 16. f4 {[%emt 0:10:13]} ({White should try} 16. Ne4 $15 O-O 17. Nd6) 16... Nb3 $2 {[%emt 0:16:53]} 17. f5 $2 {[%mdl 8192]} (17. Qh5 $2 g6 18. Qe2 Bxd3 19. Qxd3 Nxa1 $19) (17. Bxc4 $14 {keeps the upper hand.} Rxc4 18. f5 (18. Qxc4 Nxd2 19. Qd3 Nxf1 $17) 18... Nxd2 19. Qxd2 Rxd4 20. Qxd4 Qxg5 21. Rf3) 17... Nxd2 $19 {[%emt 0:17:36] Pair of Knights!} (17... Nxa1 18. Bxc4 Rxc4 19. fxe6 fxe6 20. Nf7 $18) 18. Qh5 {[%emt 0:15:55]} (18. Nxf7 Kxf7 19. fxe6+ Kg8 20. Qf2) 18... Qe7 $1 {[%emt 0:00:00]} 19. fxe6 {[%emt 0:07:42][%cal Rf1f7]} Nxf1 {[%emt 0:13:21]} (19... Bxd3 20. Rxf7 Bg6 21. Rxe7+ Kxe7 22. Qh4 dxe6 23. Nf3+ Kd7 24. Nxd2 $14) 20. Bxc4 {[%emt 0:05:11]} Rxc4 {[%emt 0:00:00]} 21. Rxf1 {[%emt 0:00:02][%cal Re6f7]} g6 $2 {[%emt 0:00:00]} (21... dxe6 $19 22. Rxf7 Rc1+ 23. Kf2 Rf8 24. Rxf8+ Kxf8 25. Nxh7+ Kg8) 22. exf7+ $15 {[%emt 0:00:53]} Kd8 {[%emt 0:00:25]} 23. Qh6 {[%emt 0:00:00][%mdl 8192]} ({White has to play} 23. Qf3 $15 Rxd4 24. f8=Q+ Rxf8 25. Qxf8+ Qxf8 26. Rxf8+ Kc7 27. Rf7 Rd1+ 28. Kf2) 23... Rf8 $19 {[%emt 0:00:00]} ({Weaker is} 23... Qxa3 24. Nxh7 Kc7 25. f8=Q Rxf8 26. Nxf8 $17) 24. e6 dxe6 $4 {[%emt 0:04:37][%mdl 8192] [#]} ({Don't do} 24... Rxd4 25. Nxh7 Nf4 26. Nxf8 $18) (24... Nf6 $19 25. Qg7 {[#]} (25. Rxf6 $2 Qxf6 26. Qxf8+ Kc7 $19) 25... Rxd4 $1 26. Nxh7 Nxh7 $1 27. Qxd4 Ng5) 25. Nxe6+ $1 {[%emt 0:07:53][%mdl 512] Weighted Error Value: White=1.05/Black=0.56} 1-0

[Event "3rd Tal Heraklion-IM 2022"]
[Site "Heraklion"]
[Date "2022.05.04"]
[Round "9.3"]
[White "Milonakis, Georgios"]
[Black "Rakshitta Ravi"]
[Result "1/2-1/2"]
[ECO "D02"]
[WhiteElo "2215"]
[BlackElo "2240"]
[Annotator "TA"]
[PlyCount "91"]
[EventDate "2022.04.18"]
[EventType "tourn"]
[EventCountry "GRE"]
[SourceTitle "playchess.com"]
[Source "ChessBase"]
[SourceQuality "1"]
[TimeControl "40/5400+30:1800+30"]

{[%evp 10,91,23,-2,11,9,16,0,18,16,28,31,31,23,10,4,13,8,14,14,7,1,49,33,27,25,39,33,39,29,29,28,35,27,34,18,16,16,25,0,0,0,0,0,0,0,0,0,0,-6,0,0,0,0,0,0,0,0,0,0,0,0,0,0,0,0,0,0,0,0,0,0,10,0,0,0,0,0,0,0,0,0,0,0]} 1. Nf3 {[%emt 0:00:17]} Nf6 {[%emt 0:00:18]} 2. d4 {[%emt 0:01:13]} d5 {[%emt 0:00:11]} 3. g3 {[%emt 0:00:08]} e6 {[%emt 0:00:03]} 4. Bg2 {[%emt 0:00:17]} Be7 {[%emt 0:00:05]} 5. O-O {[%emt 0:00:41]} O-O {[%emt 0:00:03]} 6. Nbd2 {[%emt 0:00:26]} (6. c4 $5) 6... b5 {[%emt 0:00:42] D02: 1 d4 d5 2 Nf3 sidelines, including 2...Nf6 3 g3 and 2...Nf6 3 Bf4.} 7. Nb3 {[%emt 0:00:26] [#]} a5 $146 {[%emt 0:03:09]} ({Predecessor:} 7... Nbd7 8. Na5 Bd6 9. Nc6 Qe8 10. Nfe5 Ne4 11. Nxd7 Bxd7 12. Ne5 Bc8 13. c4 bxc4 14. Nxc4 {0-1 (52) Raasch,J (2298)-Van den Doel,E (2573) Germany 2011}) 8. a4 {[%emt 0:00:12]} b4 {[%emt 0:01:23]} 9. Ne5 {[%emt 0:07:36]} Bb7 {[%emt 0:00:31]} 10. c4 {[%emt 0:02:55]} bxc3 {[%emt 0:01:45]} 11. bxc3 {[%emt 0:00:09]} Nbd7 {[%emt 0:04:40]} 12. Nxd7 {[%emt 0:01:07]} Nxd7 {[%emt 0:01:10]} 13. c4 {[%emt 0:06:55]} Nb6 {[%emt 0:00:20]} 14. cxd5 {[%emt 0:05:33]} Bxd5 {[%emt 0:02:38]} 15. Qc2 {[%emt 0:07:37]} Rb8 {[%emt 0:03:19]} (15... Bxg2 $11 16. Kxg2 Bb4) 16. e3 {[%emt 0:13:34]} Bxg2 {[%emt 0:30:55]} 17. Kxg2 {[%emt 0:00:12]} Qd7 {[%emt 0:04:20]} 18. Bd2 {[%emt 0:07:47]} Nxa4 {[%emt 0:12:10]} 19. Nxa5 {[%emt 0:05:44]} Rb2 {[%emt 0:03:03] [#]} 20. Qc6 {[%emt 0:02:09]} Nb6 {[%emt 0:10:45]} 21. Qxd7 {[%emt 0:04:20]} Nxd7 {[%emt 0:00:01]} 22. Nc6 {[%emt 0:04:47]} Bd6 {[%emt 0:00:18]} 23. Ba5 {[%emt 0:00:36]} Nb8 {[%emt 0:06:02]} 24. Nxb8 {[%emt 0:04:02]} Rfxb8 {[%emt 0:00:06] The position is equal.} 25. Rfc1 {[%emt 0:00:18]} Ra8 {[%emt 0:02:15]} 26. Kf3 {[%emt 0:08:51]} f6 {[%emt 0:01:31]} 27. Be1 {[%emt 0:03:46]} Raa2 {[%emt 0:03:03]} 28. Rxa2 {[%emt 0:02:45]} Rxa2 $11 {[%emt 0:00:07][%mdl 4096] Endgame KRB-KRB} 29. Rc4 {[%emt 0:01:49]} Kf7 {[%emt 0:00:39]} 30. h4 {[%emt 0:00:42]} h5 {[%emt 0:01:27]} 31. e4 {[%emt 0:00:31]} Ra3+ {[%emt 0:04:50]} 32. Ke2 {[%emt 0:00:47]} Ke8 {[%emt 0:00:25]} 33. e5 {[%emt 0:03:26]} fxe5 {[%emt 0:00:10]} 34. dxe5 {[%emt 0:00:02]} Bxe5 {[%emt 0:00:17]} 35. Rc5 {[%emt 0:00:24]} Bd4 {[%emt 0:03:33]} 36. Rxc7 {[%emt 0:00:26]} Ra7 {[%emt 0:00:05]} 37. Rc4 {[%emt 0:01:48]} Bf6 {[%emt 0:00:41]} 38. Bd2 {[%emt 0:01:29]} Kf7 {[%emt 0:01:05]} 39. Rc5 {[%emt 0:00:54]} g6 {[%emt 0:00:22]} 40. Be3 {[%emt 0:00:00]} Rd7 {[%emt 0:00:00]} 41. Rc8 {[%emt 0:06:38]} Bd4 {[%emt 0:01:58]} 42. f3 {[%emt 0:09:11]} Bxe3 {[%emt 0:00:22]} 43. Kxe3 {[%emt 0:00:06]} Ra7 {[%emt 0:00:38]} 44. g4 {[%emt 0:03:13]} hxg4 {[%emt 0:03:10]} 45. fxg4 {[%emt 0:00:17]} Kf6 {[%emt 0:00:44]} 46. Rc5 {[%emt 0:02:41] Weighted Error Value: White=0.03 (flawless) /Black=0.03 (flawless)} 1/2-1/2

[Event "3rd Tal Heraklion-IM 2022"]
[Site "Heraklion"]
[Date "2022.05.04"]
[Round "9.4"]
[White "Lirindzakis, Timotheos"]
[Black "Cmiel, Thorsten"]
[Result "1-0"]
[ECO "D37"]
[WhiteElo "2164"]
[BlackElo "2079"]
[Annotator "TA"]
[PlyCount "73"]
[EventDate "2022.04.18"]
[EventType "tourn"]
[EventCountry "GRE"]
[SourceTitle "playchess.com"]
[Source "ChessBase"]
[SourceQuality "1"]
[TimeControl "40/5400+30:1800+30"]

{[%evp 9,72,16,15,15,26,25,29,25,27,32,25,33,33,29,32,0,26,-16,0,-31,40,26,45,35,69,44,70,44,72,64,83,85,143,104,116,107,183,196,387,403,412,401,400,394,394,180,171,176,167,149,533,564,568,562,1362,645,1326,1326,29989,29990,29997,29998,29998,29999,29999]} 1. Nf3 {[%emt 0:00:06]} d5 {[%emt 0:00:55]} 2. d4 {[%emt 0:00:22]} e6 {[%emt 0:00:08]} 3. c4 {[%emt 0:00:14]} Nf6 {[%emt 0:00:06]} 4. Nc3 {[%emt 0:00:13]} a6 {[%emt 0:00:06]} 5. cxd5 {[%emt 0:02:11]} exd5 {[%emt 0:00:29]} 6. Bg5 {[%emt 0:00:18] D37: Queen's Gambit Declined: 5 Bf4.} Be6 {[%emt 0:00:09]} 7. e3 {[%emt 0:01:31]} Nbd7 {[%emt 0:00:28]} 8. Bd3 {[%emt 0:00:40] White has an edge.} Bd6 {[%emt 0:00:06]} 9. O-O {[%emt 0:00:37]} c6 {[%emt 0:00:14] 9...c6 is better than 9...0-0.} 10. Bf4 {[%emt 0:03:02]} Qc7 {[%emt 0:01:42]} 11. Qd2 {[%emt 0:02:14]} O-O {[%emt 0:01:56]} 12. b4 {[%emt 0:04:50] [#]} h6 $146 {[%emt 0:07:28]} ({Predecessor:} 12... Bg4 13. Bg3 Nh5 14. Qc2 Nxg3 15. Bxh7+ Kh8 16. fxg3 Nf6 17. Bf5 Qe7 18. Rae1 Bxf5 19. Qxf5 Bxb4 {½-½ (35) Sakline Mostafa,S (2005)-Mohammad Fahad,R (2412) Dhaka 2022}) 13. Na4 {[%emt 0:08:24]} Bg4 {[%emt 0:03:44]} 14. Nh4 {[%emt 0:10:20]} b5 {[%emt 0:14:52]} (14... Bxf4 $15 15. exf4 Ne4 16. Bxe4 dxe4) 15. Bxd6 $14 {[%emt 0:06:51]} Qxd6 {[%emt 0:00:02]} 16. Nc5 {[%emt 0:00:47]} Nb6 {[%emt 0:05:53]} 17. h3 {[%emt 0:05:11]} Bd7 {[%emt 0:00:35]} 18. a4 {[%emt 0:02:20] White is more active.} Rfe8 {[%emt 0:03:12]} 19. Qc2 {[%emt 0:02:26]} Nc4 {[%emt 0:05:55]} 20. Ra2 {[%emt 0:08:43]} g5 {[%emt 0:03:45]} (20... Qe7 $142) 21. Nf5 {[%emt 0:03:05]} Bxf5 {[%emt 0:00:07]} 22. Bxf5 {[%emt 0:00:03]} h5 {[%emt 0:04:53]} (22... Re7 $16 {was worth a try.}) 23. Rfa1 $18 {[%emt 0:12:09]} Rad8 $2 {[%emt 0:03:06]} (23... Nb6 24. axb5 axb5 25. Rxa8 Rxa8 26. Rxa8+ Nxa8) 24. Nb7 {[%emt 0:02:18]} Qxb4 {[%emt 0:00:04]} 25. Nxd8 {[%emt 0:00:22]} Rxd8 {[%emt 0:00:00]} 26. axb5 {[%emt 0:00:50]} axb5 {[%emt 0:00:02]} 27. Ra8 {[%emt 0:01:32]} (27. Ra7 $142 Qd6 {[#]} 28. Bg6 $1 {[%mdl 512]}) 27... Rxa8 {[%emt 0:00:05]} 28. Rxa8+ {[%emt 0:00:04]} Kg7 {[%emt 0:00:01] [#] White must now prevent ...Qe1+.} 29. Qc1 {[%emt 0:05:34] Prevents Qe1+.} Ne4 $2 {[%emt 0:01:05][%mdl 8192] This costs Black the game.} (29... Qe7 $16 {is a better chance.} 30. Qa1 Qb4) 30. Bxe4 {[%emt 0:02:38]} dxe4 {[%emt 0:00:01][%mdl 4096] Endgame KQR-KQN} 31. Qd1 {[%emt 0:02:57]} h4 {[%emt 0:01:33]} 32. Qg4 {[%emt 0:05:50]} (32. Qh5 $142 Qe1+ 33. Kh2 Qxf2 34. Qxg5+ Kh7 35. Qg8+ Kh6 36. Qh8+ Kg6 37. Rg8+ Kf5 38. Rg4) 32... Qe1+ {[%emt 0:00:46]} 33. Kh2 {[%emt 0:00:10]} Kf6 {[%emt 0:00:13]} 34. Rg8 {[%emt 0:03:40] White mates.} Qxf2 {[%emt 0:00:15]} 35. Qxg5+ {[%emt 0:00:10]} Ke6 {[%emt 0:00:07]} 36. Re8+ {[%emt 0:01:47]} Kd6 {[%emt 0:00:07]} 37. Qd8# {[%emt 0:00:38] Weighted Error Value: White=0.31/Black=0.67} 1-0